{"text_format":"1","workbook":"xlsx","n_sheets":1,"sheets":["Hoja1"],"not_rendered":{"charts":0,"images":0,"macros":1,"external_links":0,"defined_names":0,"comments":0,"pivot_tables":0},"unopened":[],"bounds":{"document_bytes":16777216,"sheet_cells":100000,"rows_first":2000,"rows_last":500,"rows_between":2000,"halvings":0,"cell_chars":16384,"cell_head_chars":4096},"cells_cut":0,"cells_raw":0,"read":"whole","date_system":"1900"}

{"sheet":"Hoja1","index":0,"n_rows":29,"n_cols":24,"rows_kept":29,"cut":false,"hidden":false,"merged":[[1,20,1,23],[0,1,0,8],[2,3,2,4],[2,7,2,8],[1,7,1,8],[1,3,1,6],[2,5,2,6],[2,17,2,18],[2,15,2,16],[2,13,2,14],[1,13,1,14],[1,15,1,18],[0,11,0,18],[1,1,2,2],[1,11,2,12],[2,20,2,21]]}
[null,"COMPETENCIA MATEMÁTICA CIENCIA E TECNOLOXÍA  4º PRIMARIA",null,null,null,null,null,null,null,null,null,"COMPETENCIA MATEMÁTICA CIENCIA E TECNOLOXÍA  4º PRIMARIA"]
[null,"4º A",null,"CIENCIAS DA NATUREZA",null,null,null,"CIENCIAS SOCIAIS",null,null,null,"4º A",null,"LINGUA CASTELÁ",null,"MATEMÁTICAS",null,null,null,null,"COMPETENCIA MATEMÁTICA C. E T.  4º PRIMARIA"]
[null,null,null,"4º-CNB2.2.1 - Identifica e adopta hábitos de hixiene, de descanso e de alimentación sa e diferencia prácticas e mensaxes que son contraproducentes para a saúde.",null,"4º-CNB2.2.3 - Recoñece algúns factores que producen as enfermidades máis habituais (carie, catarros, gripe, obesidade) e aplica actuacións para á súa prevención.",null,"4º-EFB5.1.2 - Relaciona os principais hábitos de alimentación coa actividade física (horarios de comidas, calidade/cantidade dos alimentos inxeridos etc.).",null,null,null,null,null,"4º-LCB2.3.4 - Relaciona de xeito global, a información contida nos gráficos e ilustracións coa información que aparece no texto.",null,"4º-MTB2.4.1 - Emprega e automatiza algoritmos estándar de suma, resta, multiplicación e división (de ata dúas cifras) con distintos tipos de números, en comprobación de resultados en contextos de resolución de problemas e en situacións cotiás.",null,"4º-MTB2.5.1 - Resolve problemas que impliquen o dominio dos contidos traballados, empregando estratexias heurísticas, de razoamento (clasificación, recoñecemento das relacións, uso de exemplos contrarios), creando conxecturas, construíndo, argumentando e tomando decisións.",null,null,"4º A",null,"NOTA MEDIA","CUALIFICACIÓN"]
[null,null,"ALUMNO /A","Nota",0.05,"Nota",0.05,"Nota",0.05,null,null,null,"ALUMNO /A","Nota",0.05,"Nota",0.2,"Nota",0.6,null,null,"ALUMNO /A",1]
[null,1,null,null,{"$f":"D5*0.05","v":0},null,{"$f":"F5*0.05","v":0},null,{"$f":"H5*0.05","v":0},null,null,1,null,null,{"$f":"N5*0.05","v":0},null,{"$f":"P5*0.2","v":0},null,{"$f":"R5*0.6","v":0},null,1,null,{"$f":"SUM(S5,Q5,O5,I5,G5,E5)","v":0},{"$f":"IF(W5<5,\"INSUFICIENTE\",IF(W5<6,\"SUFICIENTE\",IF(W5<7,\"BIEN\",IF(W5<9,\"NOTABLE\",\"SOBRESALIENTE\"))))","v":"INSUFICIENTE"}]
[null,2,null,null,{"$f":"D6*0.05","v":0},null,{"$f":"F6*0.05","v":0},null,{"$f":"H6*0.05","v":0},null,null,2,null,null,{"$f":"N6*0.05","v":0},null,{"$f":"P6*0.2","v":0},null,{"$f":"R6*0.6","v":0},null,2,null,0,{"$f":"IF(W6<5,\"INSUFICIENTE\",IF(W6<6,\"SUFICIENTE\",IF(W6<7,\"BIEN\",IF(W6<9,\"NOTABLE\",\"SOBRESALIENTE\"))))","v":"INSUFICIENTE"}]
[null,3,null,null,0,null,0,null,0,null,null,3,null,null,0,null,0,null,0,null,3,null,0,"INSUFICIENTE"]
[null,4,null,null,0,null,0,null,0,null,null,4,null,null,0,null,0,null,0,null,4,null,0,"INSUFICIENTE"]
[null,5,null,null,0,null,0,null,0,null,null,5,null,null,0,null,0,null,{"$f":"R9*0.6","v":0},null,5,null,0,"INSUFICIENTE"]
[null,{"$f":"B9+1","v":6},null,null,0,null,0,null,0,null,null,{"$f":"L9+1","v":6},null,null,0,null,0,null,0,null,6,null,0,"INSUFICIENTE"]
[null,{"$f":"B10+1","v":7},null,null,0,null,0,null,0,null,null,{"$f":"L10+1","v":7},null,null,0,null,0,null,0,null,7,null,0,"INSUFICIENTE"]
[null,8,null,null,0,null,0,null,0,null,null,8,null,null,0,null,0,null,0,null,8,null,0,"INSUFICIENTE"]
[null,9,null,null,0,null,0,null,0,null,null,9,null,null,0,null,0,null,0,null,9,null,0,"INSUFICIENTE"]
[null,10,null,null,0,null,0,null,0,null,null,10,null,null,0,null,0,null,0,null,10,null,0,"INSUFICIENTE"]
[null,11,null,null,0,null,0,null,0,null,null,11,null,null,0,null,0,null,0,null,11,null,0,"INSUFICIENTE"]
[null,12,null,null,0,null,0,null,0,null,null,12,null,null,0,null,0,null,0,null,12,null,0,"INSUFICIENTE"]
[null,13,null,null,0,null,0,null,0,null,null,13,null,null,0,null,0,null,0,null,13,null,0,"INSUFICIENTE"]
[null,14,null,null,0,null,0,null,0,null,null,14,null,null,0,null,0,null,0,null,14,null,0,"INSUFICIENTE"]
[null,15,null,null,0,null,0,null,0,null,null,15,null,null,0,null,0,null,0,null,15,null,0,"INSUFICIENTE"]
[null,16,null,null,0,null,0,null,0,null,null,16,null,null,0,null,0,null,0,null,16,null,0,"INSUFICIENTE"]
[null,17,null,null,0,null,0,null,0,null,null,17,null,null,0,null,0,null,0,null,17,null,0,"INSUFICIENTE"]
[null,18,null,null,0,null,0,null,0,null,null,18,null,null,0,null,0,null,0,null,18,null,0,"INSUFICIENTE"]
[null,19,null,null,0,null,0,null,0,null,null,19,null,null,0,null,0,null,0,null,19,null,0,"INSUFICIENTE"]
[null,20,null,null,0,null,0,null,0,null,null,20,null,null,0,null,0,null,0,null,20,null,0,"INSUFICIENTE"]
[null,21,null,null,0,null,0,null,0,null,null,21,null,null,0,null,0,null,0,null,21,null,0,"INSUFICIENTE"]
[null,22,null,null,0,null,0,null,0,null,null,22,null,null,0,null,0,null,0,null,22,null,0,"INSUFICIENTE"]
[null,23,null,null,0,null,0,null,0,null,null,23,null,null,0,null,0,null,0,null,23,null,0,"INSUFICIENTE"]
[null,24,null,null,0,null,0,null,0,null,null,24,null,null,0,null,0,null,0,null,24,null,0,"INSUFICIENTE"]
[null,25,null,null,0,null,0,null,0,null,null,25,null,null,0,null,0,null,0,null,25,null,0,"INSUFICIENTE"]